bitfinex/quotes_BTCUSD_20260310
["timestamp","ask_amount","ask_price","bid_price","bid_amount"]
[1773144427118,0.28685907,70515.0,70514.0,0.00144]
[1773144427424,0.10090689,70515.0,70514.0,0.00144]
[1773144427628,0.10090689,70515.0,70510.0,0.00144]
[1773144427629,0.03,70513.0,70510.0,0.00144]
[1773144427841,0.03,70513.0,70499.0,0.21215431]
[1773144427842,0.07090689,70515.0,70486.0,0.0002842]
[1773144427843,0.22674714,70508.0,70486.0,0.0002842]
[1773144428048,0.03,70505.0,70492.0,0.03134308]
[1773144428249,0.07090689,70515.0,70495.0,0.21215431]
[1773144428466,0.22674714,70514.0,70490.0,0.0719315]
[1773144428681,0.07090689,70515.0,70491.0,0.21359431]
[1773144428888,0.07090689,70515.0,70493.0,0.21215431]
[1773144428889,0.03011193,70513.0,70493.0,0.21215431]
[1773144429095,0.03,70508.0,70491.0,0.00144]
[1773144429302,0.03,70508.0,70490.0,0.0719315]
[1773144429303,0.03,70506.0,70492.0,0.21215431]
[1773144429498,0.28685907,70506.0,70493.0,0.07092902]
[1773144429709,0.03,70500.0,70492.0,0.0709293]
[1773144429923,0.25934686,70501.0,70494.0,0.00144]
[1773144430130,0.03259972,70500.0,70494.0,0.00144]
[1773144430627,0.03259972,70500.0,70495.0,0.00144]
[1773144430856,0.07091596,70506.0,70495.0,0.21359431]
[1773144431090,0.0640258,70563.0,70498.0,0.03057646]
[1773144431091,0.03259972,70521.0,70498.0,0.03057646]
[1773144431313,0.03259972,70521.0,70495.0,0.00144]
[1773144431314,0.03259972,70521.0,70502.0,0.27796287]
[1773144431537,0.07089786,70524.0,70506.0,0.21215431]
[1773144431538,0.03259972,70524.0,70506.0,0.21215431]
[1773144431768,0.22674714,70522.0,70506.0,0.21215431]
[1773144431983,0.22674714,70522.0,70504.0,0.07091796]
[1773144431984,0.03,70521.0,70508.0,0.21215431]
[1773144432193,0.00023,70525.0,70511.0,0.03057646]
[1773144432398,0.07112697,70525.0,70514.0,0.21215431]
[1773144432603,0.10372669,70525.0,70515.0,0.00144]
[1773144432813,0.03259972,70524.0,70515.0,0.00144]
[1773144433012,0.03,70523.0,70509.0,0.21215431]
[1773144433223,0.03,70523.0,70507.0,0.03057646]
[1773144433224,0.03,70519.0,70504.0,0.07091796]
[1773144433426,0.06259972,70515.0,70505.0,0.00144]
[1773144433764,0.06259972,70515.0,70504.0,0.07091796]
[1773144434005,0.06259972,70515.0,70505.0,0.00144]
[1773144434427,0.03,70514.0,70484.0,0.0002]
[1773144434593,0.03,70510.0,70495.0,0.03057646]
[1773144434958,0.0708979,70524.0,70500.0,0.21215431]
[1773144435158,0.22674714,70520.0,70502.0,0.21215431]
[1773144435331,0.22674714,70516.0,70502.0,0.21215431]
[1773144435570,0.03,70512.0,70500.0,0.07092116]
[1773144435718,0.28934686,70508.0,70501.0,0.07236083]
[1773144435928,0.28934686,70508.0,70502.0,0.00144]
[1773144435929,0.03,70508.0,70502.0,0.00144]
[1773144436276,0.03,70508.0,70501.0,0.07092083]
[1773144436455,0.03,70508.0,70503.0,0.00144]
[1773144436767,0.22674714,70513.0,70504.0,0.00144]
[1773144436972,0.03,70508.0,70505.0,0.00144]
[1773144437178,0.07090689,70515.0,70500.0,0.07092139]
[1773144437179,0.28934686,70506.0,70500.0,0.07092139]
[1773144437409,0.28934686,70506.0,70489.0,0.03057646]
[1773144437410,0.03259972,70497.0,70465.0,0.03057646]
[1773144437625,0.00023,70500.0,70480.0,0.16090394]
[1773144437831,0.00023,70500.0,70475.0,0.27796287]
[1773144437832,0.00562,70516.0,70484.0,0.21215431]
[1773144437833,0.25934686,70507.0,70484.0,0.21215431]
[1773144438051,0.03259972,70504.0,70484.0,0.21215431]
[1773144438263,0.0002842,70509.0,70487.0,0.03057646]
[1773144438473,0.0002842,70509.0,70480.0,0.16090394]
[1773144438474,0.0002842,70509.0,70488.0,0.00144]
[1773144438682,0.0002842,70509.0,70491.0,0.21215431]
[1773144438885,0.0002842,70509.0,70494.0,0.03057646]
[1773144439092,0.0002842,70509.0,70495.0,0.21359431]
[1773144439305,0.00562,70516.0,70496.0,0.03057646]
[1773144439508,0.07089785,70524.0,70502.0,0.27796287]
[1773144439713,0.07089785,70524.0,70505.0,0.21215431]
[1773144439912,0.03,70523.0,70505.0,0.21215431]
[1773144441690,0.03,70521.0,70506.0,0.07091595]
[1773144441906,0.03,70521.0,70507.0,0.21215431]
[1773144444697,0.03,70519.0,70509.0,0.07091293]
[1773144444998,0.03,70519.0,70510.0,0.00144]
[1773144445422,0.03,70519.0,70510.0,0.21359431]
[1773144446252,0.07090187,70520.0,70504.0,0.0002]
[1773144446253,0.22674714,70516.0,70504.0,0.0002]
[1773144446479,0.25674714,70511.0,70505.0,0.00144]
[1773144446709,0.25674714,70511.0,70498.0,0.07092366]
[1773144446710,0.10091189,70511.0,70482.0,0.07094003]
[1773144446926,0.22674714,70504.0,70485.0,0.00144]
[1773144447156,0.03,70495.0,70485.0,0.00144]
[1773144447375,0.25674714,70495.0,70485.0,0.00144]
[1773144447589,0.03,70495.0,70486.0,0.21215431]
[1773144448284,0.03,70494.0,70486.0,0.21215431]
[1773144448711,0.00144,70501.0,70485.0,0.00144]
[1773144448712,0.07092097,70501.0,70491.0,0.21215431]
[1773144448918,0.07091662,70506.0,70493.0,0.21215431]
[1773144449339,0.03,70505.0,70493.0,0.21215431]
[1773144451038,0.03,70503.0,70494.0,0.07236802]
[1773144451176,0.07090542,70517.0,70495.0,0.21215431]
[1773144451376,0.22818714,70515.0,70495.0,0.21253375]
[1773144451813,0.22674714,70513.0,70497.0,0.21215431]
[1773144451993,0.25674714,70512.0,70497.0,0.21215431]
[1773144452350,0.03259972,70514.0,70495.0,0.00037944]
[1773144452351,0.03,70504.0,70495.0,0.00037944]
[1773144452498,0.03,70502.0,70488.0,0.21215431]
[1773144452698,0.03,70502.0,70490.0,0.00144]
[1773144452699,0.03,70496.0,70490.0,0.00144]
[1773144453050,0.03,70494.0,70488.0,0.07093405]
[1773144453252,0.03,70494.0,70486.0,0.00144]
[1773144453253,0.25674714,70494.0,70486.0,0.00144]
[1773144453775,0.25674714,70494.0,70484.0,0.07093712]
[1773144453776,0.03,70494.0,70480.0,0.07113213]
[1773144454070,0.07092701,70495.0,70463.0,0.07095904]
[1773144454071,0.03,70484.0,70469.0,0.00144]
[1773144454216,0.03,70484.0,70470.0,0.00144]
[1773144454410,0.25619159,70484.0,70470.0,0.2250496]
[1773144454615,0.10352673,70495.0,70471.0,0.27310238]
[1773144454822,0.10496673,70495.0,70474.0,0.2236096]
[1773144455025,0.10496673,70495.0,70474.0,0.25418606]
[1773144455248,0.25619159,70494.0,70476.0,0.2236096]
[1773144455448,0.06259972,70494.0,70477.0,0.2250496]
[1773144455666,0.25619159,70492.0,70477.0,0.2250496]
[1773144455880,0.25619159,70492.0,70489.0,0.0002]
[1773144456078,0.25619159,70492.0,70485.0,0.00144]
[1773144456245,0.03,70492.0,70485.0,0.00144]
[1773144456669,0.03,70493.0,70485.0,0.00144]
[1773144456929,0.03255972,70494.0,70485.0,0.00144]
[1773144457114,0.22619159,70493.0,70485.0,0.00144]
[1773144457317,0.25619159,70491.0,70483.0,0.00144]
[1773144458425,0.03,70490.0,70483.0,0.2250496]
[1773144458603,0.07092909,70493.0,70490.0,0.00509484]
[1773144459537,0.22619159,70506.0,70490.0,0.07602688]
[1773144459708,0.0711523,70500.0,70491.0,0.2236096]
[1773144460076,0.0711523,70500.0,70490.0,0.07093204]
[1773144460303,0.25619159,70497.0,70489.0,0.00144]
[1773144460555,0.03,70495.0,70462.0,0.07095958]
[1773144460893,0.03,70491.0,70482.0,0.07257989]
[1773144461038,0.0711523,70500.0,70484.0,0.03436082]
[1773144461039,0.07263237,70500.0,70484.0,0.03436082]
[1773144461245,0.07115237,70500.0,70485.0,0.2236096]
[1773144461579,0.07115237,70500.0,70487.0,0.2236096]
[1773144461871,0.03,70499.0,70488.0,0.00148]
[1773144462284,0.03,70499.0,70488.0,0.2250896]
[1773144463272,0.03,70498.0,70488.0,0.2250896]
[1773144463490,0.03,70498.0,70490.0,0.2236096]
[1773144464066,0.00023,70500.0,70490.0,0.2236096]
[1773144464436,0.00023,70500.0,70489.0,0.07093305]
[1773144464437,0.07091462,70508.0,70489.0,0.07093305]
[1773144464622,0.07091462,70508.0,70492.0,0.2236096]
[1773144464784,0.07091462,70508.0,70494.0,0.2236096]
[1773144465002,0.07091462,70508.0,70496.0,0.2236096]
[1773144465543,0.03,70505.0,70497.0,0.070925]
[1773144466029,0.03,70505.0,70498.0,0.2236096]
[1773144466437,0.03,70505.0,70497.0,0.070925]
[1773144466614,0.03,70504.0,70496.0,0.07092558]
[1773144467642,0.03,70503.0,70496.0,0.07092558]
[1773144468044,0.2368066,70515.0,70497.0,0.22045274]
[1773144468251,0.07238856,70514.0,70497.0,0.22045274]
[1773144468451,0.07238856,70514.0,70497.0,0.2533932]
[1773144468654,0.03,70513.0,70497.0,0.2533932]
[1773144468860,0.03,70513.0,70496.0,0.07092558]
[1773144468861,0.03,70513.0,70499.0,0.22045274]
[1773144469060,0.03,70513.0,70501.0,0.22045274]
[1773144469260,0.03,70513.0,70503.0,0.22045274]
[1773144469469,0.07090991,70512.0,70504.0,0.07091796]
[1773144469672,0.03,70511.0,70502.0,0.07239796]
[1773144469850,0.03,70511.0,70503.0,0.00148]
[1773144470060,0.03,70505.0,70499.0,0.00148]
[1773144470477,0.03,70505.0,70498.0,0.07092381]
[1773144470717,0.03,70503.0,70493.0,0.07092887]
[1773144470908,0.30103342,70503.0,70494.0,0.00148]
[1773144471095,0.07090991,70512.0,70489.0,0.00185944]
[1773144471096,0.03,70495.0,70489.0,0.00185944]
[1773144471297,0.2668066,70495.0,70484.0,0.07093718]
[1773144471484,0.2671858,70495.0,70487.0,0.00148]
[1773144471695,0.07092802,70494.0,70484.0,0.07093718]
[1773144471872,0.03,70493.0,70485.0,0.00148]
[1773144472287,0.03,70493.0,70481.0,0.22193274]
[1773144472955,0.03,70491.0,70482.0,0.00148]
[1773144473191,0.03,70487.0,70482.0,0.00148]
[1773144473431,0.07092802,70494.0,70482.0,0.00148]
[1773144473432,0.03,70485.0,70482.0,0.00148]
[1773144473650,0.2368066,70493.0,70482.0,0.00148]
[1773144473872,0.07093003,70492.0,70475.0,0.00023]
[1773144474090,0.07093003,70492.0,70475.0,0.07265697]
[1773144474091,0.2368066,70489.0,70475.0,0.07265697]
[1773144474295,0.2368066,70485.0,70475.0,0.07265702]
[1773144474579,0.2368066,70485.0,70475.0,0.00171]
[1773144474819,0.2368066,70485.0,70475.0,0.07265708]
[1773144475202,0.2368066,70485.0,70475.0,0.00171]
[1773144475405,0.03422682,70484.0,70476.0,0.00148]
[1773144475612,0.03,70483.0,70476.0,0.00148]
[1773144475859,0.10093958,70483.0,70476.0,0.00148]
[1773144476276,0.07093607,70488.0,70477.0,0.22045274]
[1773144476487,0.03,70489.0,70477.0,0.22045274]
[1773144476853,0.07093297,70490.0,70478.0,0.00148]
[1773144476854,0.03,70487.0,70478.0,0.00148]
[1773144477997,0.03,70487.0,70473.0,0.07094714]
[1773144477998,0.03,70484.0,70466.0,0.22045274]
[1773144478138,0.03,70482.0,70468.0,0.22045274]
[1773144479023,0.07093405,70488.0,70470.0,0.22045274]
[1773144479228,0.03,70487.0,70475.0,0.0002]
[1773144479465,0.03,70487.0,70475.0,0.22213274]
[1773144480070,0.10093552,70487.0,70477.0,0.22045274]
[1773144480428,0.10093552,70487.0,70475.0,0.07262664]
[1773144480429,0.2368066,70486.0,70475.0,0.07262664]
[1773144480634,0.06422682,70485.0,70475.0,0.07114664]
[1773144480838,0.06422682,70485.0,70476.0,0.00148]
[1773144481107,0.06422682,70485.0,70475.0,0.0002]
[1773144481320,0.06422682,70485.0,70477.0,0.00148]
[1773144481321,0.03,70483.0,70477.0,0.00148]
[1773144481523,0.03,70483.0,70475.0,0.0002]
[1773144481741,0.07093552,70487.0,70474.0,0.00148]
[1773144481742,0.03,70477.0,70474.0,0.00148]
[1773144482146,0.03,70477.0,70475.0,0.00148]
[1773144482362,0.03,70477.0,70476.0,0.00148]
[1773144482540,0.03,70477.0,70468.0,0.07095419]
[1773144482716,0.03,70477.0,70469.0,0.00148]
[1773144482923,0.10094558,70477.0,70468.0,0.07095419]
[1773144483097,0.03,70477.0,70470.0,0.00148]
[1773144483735,0.03,70475.0,70470.0,0.00148]
[1773144483946,0.03,70473.0,70471.0,0.00148]
[1773144484136,0.10094985,70473.0,70464.0,0.00015]
[1773144484485,0.03,70469.0,70465.0,0.00148]
[1773144484630,0.03,70469.0,70459.0,0.0003702]
[1773144484832,0.07095016,70472.0,70457.0,0.00148]
[1773144484833,0.03,70463.0,70457.0,0.00148]
[1773144485231,0.03037897,70463.0,70457.0,0.00148]
[1773144485439,0.03037897,70463.0,70458.0,0.00148]
[1773144485637,0.29944905,70463.0,70458.0,0.00148]
[1773144485959,0.03,70461.0,70458.0,0.00148]
[1773144486227,0.03,70461.0,70457.0,0.00148]
[1773144486378,0.07095067,70472.0,70458.0,0.22055679]
[1773144486585,0.07094012,70482.0,70458.0,0.22055679]
[1773144486586,0.07093506,70487.0,70459.0,0.03294046]
[1773144486787,0.07093506,70487.0,70463.0,0.03294046]
[1773144486993,0.07093506,70487.0,70464.0,0.00148]
[1773144486994,0.03,70480.0,70464.0,0.00148]
[1773144487202,0.03,70480.0,70465.0,0.22055679]
[1773144487764,0.03,70480.0,70467.0,0.25349725]
[1773144487972,0.00562,70488.0,70464.0,0.00148]
[1773144487973,0.00562,70488.0,70470.0,0.03294046]
[1773144488168,0.00562,70488.0,70458.0,0.00011373]
[1773144488169,0.00562,70488.0,70459.0,0.07096325]
[1773144488170,0.26484326,70479.0,70459.0,0.07096325]
[1773144488368,0.07655467,70488.0,70459.0,0.07096325]
[1773144488369,0.03,70473.0,70459.0,0.07096325]
[1773144488568,0.26484326,70473.0,70459.0,0.07096325]
[1773144488779,0.03,70473.0,70460.0,0.00148]
[1773144488980,0.00148,70482.0,70459.0,0.07096325]
[1773144488981,0.29907008,70468.0,70461.0,0.00148]
[1773144489185,0.07655467,70488.0,70460.0,0.22055679]
[1773144489186,0.00562,70488.0,70460.0,0.22055679]
[1773144489419,0.07093097,70492.0,70460.0,0.22055679]
[1773144489420,0.23484326,70492.0,70466.0,0.22055679]
[1773144489644,0.23484326,70490.0,70468.0,0.22055679]
[1773144489896,0.03300883,70485.0,70461.0,0.22055679]
[1773144490131,0.03,70474.0,70463.0,0.07095922]
[1773144490331,0.03,70472.0,70464.0,0.00148]
[1773144490759,0.03,70472.0,70465.0,0.00148]
[1773144490963,0.03,70472.0,70466.0,0.00148]
[1773144491364,0.03,70474.0,70466.0,0.00148]
[1773144492842,0.03,70473.0,70467.0,0.00148]
[1773144493042,0.03,70473.0,70460.0,0.00562]
[1773144493043,0.06300883,70469.0,70466.0,0.00148]
[1773144493300,0.29785209,70469.0,70466.0,0.00148]
[1773144493603,0.29785209,70469.0,70460.0,0.00562]
[1773144493858,0.06300883,70469.0,70461.0,0.00148]
[1773144494049,0.29785209,70469.0,70461.0,0.00148]
[1773144494268,0.26484326,70469.0,70461.0,0.00148]
[1773144494466,0.03,70468.0,70461.0,0.00148]
[1773144494694,0.07094714,70476.0,70462.0,0.22055679]
[1773144494869,0.07094613,70478.0,70464.0,0.22055679]
[1773144495527,0.03,70477.0,70464.0,0.22055679]
[1773144496086,0.06834429,70481.0,70464.0,0.22055679]
[1773144496302,0.07093707,70485.0,70466.0,0.22055679]
[1773144496639,0.03,70484.0,70470.0,0.22055679]
[1773144496830,0.03,70484.0,70473.0,0.07094915]
[1773144497025,0.10093821,70484.0,70474.0,0.22055679]
[1773144497574,0.03,70496.0,70476.0,0.03297229]
[1773144497796,0.03,70496.0,70479.0,0.22055679]
[1773144497995,0.03,70496.0,70481.0,0.22055679]
[1773144498820,0.03,70494.0,70482.0,0.07094009]
[1773144499016,0.03,70494.0,70483.0,0.22055679]
[1773144499221,0.03,70494.0,70483.0,0.22067052]
[1773144499811,0.03,70486.0,70464.0,0.00148]
[1773144500012,0.03,70484.0,70465.0,0.25352908]
[1773144500357,0.03,70484.0,70466.0,0.03297229]
[1773144500512,0.03,70484.0,70467.0,0.25352908]
[1773144500725,0.26484326,70484.0,70469.0,0.22055679]
[1773144501549,0.03,70482.0,70469.0,0.07095283]
[1773144501750,0.03,70482.0,70470.0,0.22055679]
[1773144503568,0.03,70482.0,70469.0,0.07095283]
[1773144503569,0.00011296,70486.0,70471.0,0.03297229]
[1773144503908,0.0724128,70490.0,70476.0,0.22055679]
[1773144503909,0.0709328,70490.0,70476.0,0.22055679]
[1773144504063,0.0709328,70490.0,70479.0,0.03297229]
[1773144504266,0.07093204,70492.0,70477.0,0.00148]
[1773144504267,0.00022001,70492.0,70480.0,0.03297229]
[1773144504462,0.07092399,70498.0,70479.0,0.22055679]
[1773144504693,0.03,70497.0,70481.0,0.25352908]
[1773144505908,0.03,70495.0,70483.0,0.22055679]
[1773144506084,0.03,70495.0,70484.0,0.00148]
[1773144507334,0.03,70495.0,70485.0,0.00148]
[1773144507577,0.03,70495.0,70485.0,0.22203679]
[1773144508027,0.03,70495.0,70482.0,0.22055679]
[1773144508028,0.03,70493.0,70482.0,0.22055679]
[1773144508241,0.03,70489.0,70483.0,0.00148]
[1773144508447,0.29785209,70489.0,70483.0,0.00148]
[1773144509055,0.06300883,70489.0,70483.0,0.00148]
[1773144509283,0.07092802,70494.0,70483.0,0.00148]
[1773144509284,0.07092802,70494.0,70484.0,0.22055679]
[1773144509823,0.03300883,70492.0,70483.0,0.00148]
[1773144510197,0.03,70486.0,70481.0,0.00148]
[1773144510325,0.03,70482.0,70468.0,0.22055679]
[1773144510527,0.03,70482.0,70470.0,0.22055679]
[1773144511124,0.03,70482.0,70471.0,0.03297229]
[1773144511323,0.00011306,70486.0,70469.0,0.00148]
[1773144511324,0.00011306,70486.0,70472.0,0.25352908]
[1773144511835,0.00011306,70486.0,70472.0,0.22055679]
[1773144512060,0.07093104,70491.0,70476.0,0.03297229]
[1773144512225,0.03,70490.0,70477.0,0.25500908]
[1773144512878,0.00022001,70489.0,70477.0,0.25500908]
[1773144513107,0.00022001,70489.0,70477.0,0.22203679]
[1773144514128,0.03,70487.0,70478.0,0.07094412]
[1773144514334,0.03,70487.0,70478.0,0.07242412]
[1773144514533,0.03,70487.0,70478.0,0.00148]
[1773144514838,0.03,70487.0,70479.0,0.00148]
[1773144515038,0.25726341,70487.0,70479.0,0.00148]
[1773144515196,0.25726341,70487.0,70477.0,0.07094509]
[1773144515402,0.25726341,70487.0,70478.0,0.00148]
[1773144515781,0.03022001,70489.0,70478.0,0.00148]
[1773144515987,0.1011531,70489.0,70478.0,0.2372322]
[1773144516187,0.1011531,70489.0,70479.0,0.07094311]
[1773144517784,0.1011531,70489.0,70478.0,0.00148]
[1773144517785,0.32841651,70489.0,70478.0,0.00148]
[1773144517987,0.03,70487.0,70478.0,0.07242384]
[1773144519418,0.03,70487.0,70478.0,0.00148]
[1773144519622,0.25726341,70481.0,70474.0,0.07114781]
[1773144519907,0.29192728,70480.0,70479.0,0.00148]
[1773144520051,0.03,70480.0,70470.0,0.0709516]
[1773144520281,0.06466387,70478.0,70471.0,0.00148]
[1773144520481,0.03,70478.0,70456.0,0.0002]
[1773144520684,0.03,70472.0,70456.0,0.0002]
[1773144520883,0.29192728,70468.0,70461.0,0.00148]
[1773144521095,0.29192728,70468.0,70460.0,0.00562]
[1773144521298,0.29192728,70468.0,70462.0,0.00148]
[1773144521718,0.03,70466.0,70463.0,0.00148]
[1773144522173,0.03,70466.0,70464.0,0.00148]
[1773144522797,0.03,70470.0,70464.0,0.00148]
[1773144523369,0.07094714,70475.0,70465.0,0.2357522]
[1773144523562,0.00011304,70481.0,70467.0,0.2357522]
[1773144523757,0.03,70480.0,70469.0,0.26944434]
[1773144523998,0.03,70480.0,70463.0,0.07115886]
[1773144523999,0.07105437,70481.0,70470.0,0.00148]
[1773144524000,0.03,70478.0,70470.0,0.00148]
[1773144524212,0.23977814,70472.0,70471.0,0.00148]
[1773144524437,0.20511427,70472.0,70471.0,0.00148]
[1773144524584,0.25193473,70481.0,70471.0,0.00148]
[1773144524783,0.25193494,70481.0,70471.0,0.00148]
[1773144525352,0.21088036,70478.0,70471.0,0.00148]
[1773144525812,0.17717084,70473.0,70472.0,0.00148]
[1773144526015,0.17717084,70473.0,70459.0,0.07096293]
[1773144526016,0.03,70467.0,70459.0,0.07096228]
[1773144526228,0.1747066,70466.0,70450.0,0.23794205]
[1773144526437,0.03,70463.0,70451.0,0.07097074]
[1773144526648,0.03,70463.0,70451.0,0.07245074]
[1773144527076,0.03,70463.0,70451.0,0.07097074]
[1773144527267,0.03,70463.0,70452.0,0.00148]
[1773144527624,0.03,70463.0,70453.0,0.00148]
[1773144528214,0.07094714,70475.0,70455.0,0.03421327]
[1773144528413,0.24436205,70475.0,70458.0,0.27092532]
[1773144528733,0.17341491,70474.0,70459.0,0.23819205]
[1773144528930,0.07094915,70473.0,70459.0,0.23671205]
[1773144529143,0.03,70472.0,70460.0,0.00148]
[1773144529334,0.03,70470.0,70456.0,0.07096549]
[1773144529661,0.03,70468.0,70457.0,0.00148]
[1773144530030,0.03,70468.0,70458.0,0.23671205]
[1773144530664,0.03,70467.0,70458.0,0.23671205]
[1773144531119,0.10095537,70467.0,70458.0,0.23671205]
[1773144531320,0.03,70467.0,70458.0,0.23671205]
[1773144531560,0.03,70477.0,70459.0,0.03421327]
[1773144531717,0.03,70473.0,70458.0,0.07096398]
[1773144531926,0.03,70471.0,70460.0,0.00148]
[1773144532549,0.16891408,70466.0,70460.0,0.00148]
[1773144532748,0.03,70463.0,70460.0,0.00148]
[1773144532982,0.03,70463.0,70450.0,0.07219929]
[1773144532983,0.03491566,70467.0,70447.0,0.23671205]
[1773144533184,0.03491566,70467.0,70451.0,0.00148]
[1773144533185,0.02677583,70466.0,70451.0,0.00148]
[1773144533388,0.07095318,70469.0,70454.0,0.23671205]
[1773144533586,0.07095318,70469.0,70456.0,0.23671205]
[1773144533786,0.03,70468.0,70456.0,0.23671205]
[1773144534107,0.03,70468.0,70457.0,0.23819205]
[1773144534610,0.03,70466.0,70457.0,0.00148]
[1773144535304,0.06248201,70466.0,70457.0,0.00148]
[1773144535644,0.13343896,70466.0,70457.0,0.00148]
[1773144535823,0.03,70464.0,70457.0,0.00148]
[1773144536031,0.06171808,70462.0,70457.0,0.00148]
[1773144536769,0.06171808,70462.0,70452.0,0.30768201]
[1773144536928,0.06171808,70462.0,70453.0,0.00148]
[1773144537334,0.03,70461.0,70453.0,0.07244875]
[1773144537955,0.03,70461.0,70453.0,0.3091608]
[1773144538158,0.03019643,70470.0,70454.0,0.23671205]
[1773144538334,0.03,70469.0,70457.0,0.03421327]
[1773144538539,0.03,70469.0,70458.0,0.23671205]
[1773144538740,0.03,70469.0,70460.0,0.23671205]
[1773144538953,0.03,70469.0,70461.0,0.27092532]
[1773144539392,0.03,70468.0,70461.0,0.10517427]
[1773144539593,0.07117744,70475.0,70464.0,0.23671205]
[1773144539984,0.07117744,70475.0,70465.0,0.00148]
[1773144540190,0.02862893,70474.0,70465.0,0.00148]
[1773144540386,0.06128439,70472.0,70466.0,0.00144]
[1773144540587,0.06128439,70472.0,70458.0,0.30767603]
[1773144540588,0.03,70469.0,70467.0,0.00148]
[1773144540808,0.03,70469.0,70468.0,0.00148]
[1773144542201,0.05331392,70469.0,70468.0,0.00148]
[1773144542429,0.03,70469.0,70468.0,0.00148]
[1773144542804,0.05261157,70469.0,70468.0,0.00148]
[1773144543228,0.03,70469.0,70468.0,0.00148]
[1773144543428,0.07117771,70475.0,70468.0,0.00148]
[1773144543663,0.03,70474.0,70468.0,0.00148]
[1773144544844,0.03,70470.0,70460.0,0.00148]
[1773144545197,0.03,70470.0,70461.0,0.00148]
[1773144545389,0.03,70470.0,70462.0,0.27239986]
[1773144545588,0.03,70470.0,70463.0,0.03421327]
[1773144545794,0.04595061,70472.0,70463.0,0.03421327]
[1773144545970,0.001,70470.0,70463.0,0.03421327]
[1773144546167,0.001,70470.0,70462.0,0.23818659]
[1773144546367,0.001,70470.0,70459.0,0.03421327]
[1773144546575,0.001,70470.0,70460.0,0.00148]
[1773144546793,0.03,70469.0,70460.0,0.00148]
[1773144547174,0.03,70467.0,70460.0,0.00148]
[1773144547363,0.06491566,70467.0,70460.0,0.00148]
[1773144547565,0.03491566,70465.0,70454.0,0.07096829]
[1773144547809,0.03491566,70465.0,70455.0,0.00148]
[1773144548620,0.03,70464.0,70455.0,0.00148]
[1773144549312,0.03,70464.0,70454.0,0.30915488]
[1773144549523,0.03619252,70463.0,70446.0,0.30936193]
[1773144549724,0.03,70462.0,70451.0,0.23818659]
[1773144549922,0.03,70462.0,70452.0,0.2739466]
[1773144550168,0.03,70462.0,70453.0,0.00148]
[1773144550373,0.03,70462.0,70452.0,0.2739466]
[1773144550576,0.03,70462.0,70454.0,0.00148]
[1773144550725,0.06619252,70461.0,70460.0,0.0002]
[1773144551131,0.06619252,70459.0,70446.0,0.07117534]
[1773144551333,0.07095861,70464.0,70452.0,0.001]
[1773144551334,0.03,70455.0,70452.0,0.001]
[1773144551541,0.03,70453.0,70449.0,0.00148]
[1773144551760,0.07096025,70462.0,70449.0,0.00148]
[1773144551956,0.03619252,70461.0,70449.0,0.00148]
[1773144552159,0.03619252,70461.0,70450.0,0.00148]
[1773144552364,0.03630625,70461.0,70450.0,0.00018732]
[1773144552567,0.03,70460.0,70445.0,0.0002]
[1773144552901,0.03,70456.0,70446.0,0.00148]
[1773144553341,0.06619252,70454.0,70446.0,0.00148]
[1773144553574,0.00011373,70461.0,70447.0,0.00148]
[1773144553575,0.03,70452.0,70447.0,0.00148]
[1773144553785,0.03,70452.0,70445.0,0.0002]
[1773144553786,0.06619252,70450.0,70446.0,0.00148]
[1773144554010,0.06619252,70450.0,70443.0,5.349e-05]
[1773144554011,0.03,70450.0,70443.0,5.349e-05]
[1773144554275,0.03,70450.0,70444.0,0.00148]
[1773144555015,0.03,70450.0,70443.0,5.349e-05]
[1773144555213,0.03,70450.0,70444.0,0.00148]
[1773144555492,0.03,70449.0,70444.0,0.00148]
[1773144555686,0.03,70447.0,70444.0,0.00148]
[1773144556014,0.10097534,70447.0,70444.0,0.00148]
[1773144556216,0.06619252,70445.0,70444.0,0.00148]
[1773144556514,0.06619252,70445.0,70435.0,0.0709866]
[1773144556515,0.06619252,70445.0,70432.0,0.24380659]
[1773144556714,0.03,70443.0,70432.0,0.00562]
[1773144556916,0.03,70443.0,70432.0,0.31479697]
[1773144557156,0.03,70443.0,70432.0,0.24380659]
[1773144557477,0.03,70443.0,70434.0,0.00148]
[1773144557686,0.03,70443.0,70432.0,0.00562]
[1773144557888,0.03,70443.0,70430.0,0.001]
[1773144557889,0.03,70440.0,70430.0,0.001]
[1773144558098,0.03,70438.0,70431.0,0.00148]
[1773144558296,0.06619252,70438.0,70431.0,0.00148]
[1773144558527,0.03,70438.0,70431.0,0.23966659]
[1773144558798,0.03,70438.0,70431.0,0.2754266]
[1773144559206,0.03,70441.0,70431.0,0.2754266]
[1773144559448,0.00011367,70438.0,70431.0,0.2756266]
[1773144560206,0.00011367,70438.0,70431.0,0.2751266]
[1773144560586,0.00011367,70438.0,70431.0,0.23936659]
[1773144560783,0.00011367,70438.0,70429.0,0.07099321]
[1773144560784,0.03,70437.0,70432.0,0.00148]
[1773144561411,0.00011367,70438.0,70433.0,0.2739466]
[1773144561590,0.00011367,70438.0,70434.0,0.23966659]
[1773144562218,0.07097433,70448.0,70434.0,0.07246844]
[1773144562404,0.07097433,70448.0,70437.0,0.2739466]
[1773144562828,0.03,70447.0,70437.0,0.2739466]
[1773144563845,0.03619252,70454.0,70438.0,0.23966659]
[1773144563846,0.03,70446.0,70438.0,0.23966659]
[1773144564185,0.07097123,70452.0,70439.0,0.3449297]
[1773144564403,0.07097123,70452.0,70440.0,0.23818659]
[1773144564649,0.0709637,70459.0,70439.0,0.0709831]
[1773144564650,0.07658234,70460.0,70443.0,0.03576001]
[1773144564856,0.07095721,70465.0,70447.0,0.03576001]
[1773144565054,0.07095721,70465.0,70450.0,0.23818659]
[1773144565055,0.03,70464.0,70450.0,0.23818659]
[1773144565256,0.03,70464.0,70454.0,0.23818659]
[1773144565408,0.0709552,70467.0,70457.0,0.03576001]
[1773144565615,0.0709552,70467.0,70458.0,0.00148]